bitfinex/quotes_SOLUSD_20250425
["timestamp","ask_amount","ask_price","bid_price","bid_amount"]
[1745597871242,26.0,151.87,151.85,0.046329]
[1745597872229,35.9392318,151.87,151.85,0.046329]
[1745597872434,0.14216157,151.86,151.85,0.046329]
[1745597873045,29.35459355,151.87,151.85,0.046329]
[1745597873643,26.0,151.88,151.85,0.046329]
[1745597874539,26.0,151.89,151.85,0.046329]
[1745597875713,29.29038607,151.89,151.85,0.046329]
[1745597876338,26.14216157,151.88,151.85,0.046329]
[1745597877246,0.14216157,151.86,151.85,0.046329]
[1745597878834,26.0,151.87,151.85,0.046329]
[1745597880859,32.58460608,151.87,151.85,0.046329]
[1745597881155,26.0,151.87,151.85,0.046329]
[1745597881360,0.14216157,151.86,151.85,0.046329]
[1745597881762,0.14216157,151.86,151.8,0.03]
[1745597881763,0.14216157,151.82,151.8,0.03]
[1745597881930,18.79181043,151.82,151.8,0.03]
[1745597882350,18.79181043,151.82,151.75,1.0717]
[1745597882351,26.0,151.79,151.75,1.0717]
[1745597883233,2.39214857,151.78,151.75,1.0717]
[1745597883746,2.39214857,151.78,151.75,17.7483208]
[1745597883948,2.39214857,151.78,151.75,1.0717]
[1745597884141,2.39214857,151.8,151.75,1.0717]
[1745597884658,2.39214857,151.8,151.75,17.7483208]
[1745597884861,2.39214857,151.8,151.75,1.0717]
[1745597885661,2.39214857,151.8,151.75,17.7483208]
[1745597885872,26.0,151.83,151.76,16.6766208]
[1745597886735,2.39214857,151.84,151.77,16.6766208]
[1745597886935,26.0,151.83,151.77,16.6766208]
[1745597887162,2.39214857,151.84,151.78,16.6766208]
[1745597887359,2.39214857,151.82,151.8,16.6766208]
[1745597887566,2.39214857,151.82,151.79,38.6136208]
[1745597887741,2.39214857,151.82,151.8,16.6766208]
[1745597888141,2.39214857,151.88,151.8,16.6766208]
[1745597888342,2.39214857,151.88,151.81,18.2613208]
[1745597888759,2.39214857,151.88,151.81,1.5847]
[1745597889042,2.39214857,151.88,151.81,18.2613208]
[1745597889269,2.39214857,151.87,151.83,16.6766208]
[1745597889969,26.0,151.83,151.74,16.6766208]
[1745597890342,26.0,151.83,151.75,16.6766208]
[1745597890556,26.0,151.83,151.74,32.4166208]
[1745597891058,2.39214857,151.82,151.75,16.6766208]
[1745597891250,2.39214857,151.82,151.74,15.74]
[1745597891468,2.39214857,151.82,151.76,16.6766208]
[1745597891666,4.80694294,151.81,151.76,16.6766208]
[1745597891986,7.19909151,151.81,151.76,15.74]
[1745597892350,7.19909151,151.81,151.76,32.4166208]
[1745597892549,4.80694294,151.8,151.78,16.6766208]
[1745597892768,2.39214857,151.79,151.78,16.6766208]
[1745597892940,2.39214857,151.79,151.78,24.6549208]
[1745597893145,4.80694294,151.8,151.78,24.6549208]
[1745597893362,0.063,151.89,151.79,16.6766208]
[1745597893578,26.0,151.87,151.79,16.6766208]
[1745597893773,26.0,151.87,151.8,16.6766208]
[1745597894300,0.063,151.89,151.8,16.6766208]
[1745597894468,26.0,151.88,151.78,7.9783]
[1745597894668,26.0,151.87,151.8,16.6766208]
[1745597895774,26.0,151.87,151.78,7.9783]
[1745597895969,26.0,151.87,151.8,16.6766208]
[1745597896893,4.81289118,151.86,151.78,7.9783]
[1745597897096,4.81289118,151.86,151.78,24.6549208]
[1745597897394,4.81289118,151.85,151.78,24.6549208]
[1745597898078,4.81289118,151.84,151.78,24.6549208]
[1745597898274,4.81289118,151.84,151.78,7.9783]
[1745597898669,4.81289118,151.83,151.78,23.7183]
[1745597899594,4.81289118,151.83,151.79,16.6766208]
[1745597899794,4.81289118,151.86,151.79,16.6766208]
[1745597900170,4.81289118,151.86,151.81,16.6766208]
[1745597900599,4.81289118,151.85,151.78,23.7183]
[1745597900779,4.81289118,151.85,151.78,7.9783]
[1745597901291,4.81289118,151.84,151.78,24.6549208]
[1745597901684,4.81289118,151.84,151.78,7.9783]
[1745597901897,4.81289118,151.84,151.78,24.6549208]
[1745597902400,4.81289118,151.83,151.79,16.6766208]
[1745597903108,4.81289118,151.83,151.82,16.6766208]
[1745597903278,4.81289118,151.83,151.82,32.3966208]
[1745597903583,4.81289118,151.88,151.82,32.3966208]
[1745597903787,4.81289118,151.88,151.82,15.72]
[1745597904197,4.81289118,151.87,151.82,15.72]
[1745597904598,4.81289118,151.87,151.83,16.6766208]
[1745597904905,4.81289118,151.87,151.85,18.3393208]
[1745597905098,0.063,151.89,151.85,18.3393208]
[1745597905486,2.40574789,151.88,151.85,1.6627]
[1745597906281,2.40574789,151.87,151.85,1.6627]
[1745597906911,2.40574789,151.87,151.85,18.3393208]
[1745597907410,2.40574789,151.87,151.85,1.6627]
[1745597908822,2.40574789,151.87,151.85,18.3393208]
[1745597910288,2.40574789,151.87,151.86,16.6766208]
[1745597910487,2.40574789,151.87,151.85,1.6627]
[1745597912114,2.40574789,151.87,151.84,6.5778]
[1745597912686,2.40574789,151.88,151.84,6.5778]
[1745597913084,2.40574789,151.87,151.84,6.5778]
[1745597913289,2.40574789,151.87,151.82,15.72]
[1745597913509,6.67000775,151.86,151.82,15.72]
[1745597914093,4.80019158,151.85,151.77,15.72]
[1745597914617,6.67000775,151.84,151.77,15.72]
[1745597914909,4.80019158,151.83,151.76,6.5562]
[1745597915311,4.80019158,151.83,151.77,16.6766208]
[1745597915687,6.67000775,151.82,151.78,16.6766208]
[1745597915884,6.67000775,151.82,151.76,6.5562]
[1745597916124,6.67000775,151.82,151.77,16.6766208]
[1745597916320,6.67000775,151.82,151.76,6.5562]
[1745597916321,6.67000775,151.82,151.79,16.6766208]
[1745597916691,26.0,151.86,151.79,16.6766208]
[1745597916912,26.063,151.89,151.77,0.14216157]
[1745597917135,32.64681017,151.89,151.76,6.5562]
[1745597917427,26.0,151.85,151.76,6.5562]
[1745597917617,4.80001837,151.84,151.76,6.5562]
[1745597917989,6.66334045,151.83,151.76,23.2328208]
[1745597918320,6.66334045,151.83,151.76,6.5562]
[1745597918624,4.80001837,151.82,151.76,6.5562]
[1745597918802,2.39997236,151.81,151.76,6.5562]
[1745597918999,6.66334045,151.81,151.76,6.5562]
[1745597919318,6.66334045,151.81,151.76,23.2328208]
[1745597919830,4.26336809,151.81,151.76,23.2328208]
[1745597920206,27.6363,151.85,151.76,6.5562]
[1745597920207,4.26336809,151.84,151.76,6.5562]
[1745597920395,4.26336809,151.84,151.76,23.2328208]
[1745597920812,7.20321409,151.83,151.77,16.6766208]
[1745597921000,4.26336809,151.82,151.78,16.6766208]
[1745597922098,26.0,151.87,151.78,16.6766208]
[1745597922298,4.8056541,151.86,151.78,16.6766208]
[1745597922824,4.8056541,151.86,151.8,16.6766208]
[1745597923123,7.20768314,151.85,151.81,32.3966208]
[1745597923317,11.47491788,151.85,151.81,32.3966208]
[1745597923820,2.40202904,151.84,151.81,32.3966208]
[1745597924000,8.47509526,151.93,151.81,32.3966208]
[1745597924527,0.14216157,151.92,151.81,15.72]
[1745597925527,0.14216157,151.92,151.81,32.3966208]
[1745597926011,26.0,151.89,151.81,32.3966208]
[1745597926210,26.0,151.89,151.81,15.72]
[1745597928040,32.58286784,151.91,151.81,15.72]
[1745597928243,26.0,151.89,151.81,15.72]
[1745597928547,26.0,151.89,151.81,32.3966208]
[1745597929249,26.0,151.91,151.81,32.3966208]
[1745597929745,26.0,151.91,151.81,15.72]
[1745597929950,26.0,151.91,151.82,16.6766208]
[1745597930157,26.0,151.92,151.84,16.6766208]
[1745597930443,1.5665,151.93,151.84,16.6766208]
[1745597930955,1.5665,151.93,151.85,16.6766208]
[1745597931145,0.063,151.94,151.85,16.6766208]
[1745597931323,26.0,151.93,151.86,16.6766208]
[1745597931523,26.0,151.93,151.87,15.72]
[1745597932035,0.063,151.94,151.87,32.3966208]
[1745597932347,0.063,151.94,151.89,16.6766208]
[1745597932548,0.063,151.94,151.9,16.6766208]
[1745597933525,0.063,151.94,151.87,15.72]
[1745597933849,0.063,151.94,151.9,16.6766208]
[1745597934447,0.063,151.94,151.87,15.72]
[1745597934654,0.063,151.94,151.9,22.9639208]
[1745597934833,0.063,151.94,151.91,16.6766208]
[1745597935433,0.063,151.94,151.9,6.2873]
[1745597935758,0.063,151.94,151.91,16.6766208]
[1745597936927,0.063,151.94,151.9,22.9639208]
[1745597937458,4.24251478,151.94,151.9,6.2873]
[1745597937830,4.24251478,151.94,151.87,32.3966208]
[1745597938631,4.24251478,151.94,151.87,15.72]
[1745597938836,26.0,151.92,151.86,6.0599]
[1745597939022,2.39524117,151.93,151.86,21.7799]
[1745597939226,2.39524117,151.93,151.86,38.4565208]
[1745597939462,2.39524117,151.93,151.86,21.7799]
[1745597939638,4.17951478,151.92,151.86,15.72]
[1745597940148,2.39524117,151.91,151.86,15.72]
[1745597940729,4.17951478,151.9,151.86,15.72]
[1745597941965,2.39456901,151.89,151.86,15.72]
[1745597943151,4.17951478,151.88,151.86,15.72]
[1745597943752,2.39456901,151.89,151.86,15.72]
[1745597943931,26.0,151.93,151.86,15.72]
[1745597944134,26.0,151.93,151.86,32.3966208]
[1745597944528,4.17689959,151.92,151.86,32.3966208]
[1745597944864,2.39448775,151.91,151.86,32.3966208]
[1745597945530,4.17689959,151.9,151.86,15.72]
[1745597946648,4.17689959,151.92,151.86,15.72]
[1745597947434,4.17689959,151.92,151.87,16.6766208]
[1745597947636,4.17689959,151.92,151.88,16.6766208]
[1745597947849,4.17689959,151.92,151.86,15.72]
[1745597947850,4.17689959,151.93,151.89,16.6766208]
[1745597948748,0.063,151.94,151.88,16.6766208]
[1745597948945,2.46046189,151.94,151.88,16.6766208]
[1745597949561,4.17689959,151.93,151.88,16.6766208]
[1745597949748,4.17689959,151.93,151.89,16.6766208]
[1745597949951,4.17689959,151.93,151.9,16.6766208]
[1745597950272,4.17689959,151.93,151.92,16.6766208]
[1745597950452,2.46046189,151.94,151.92,32.3966208]
[1745597950776,0.063,151.94,151.93,16.6766208]
[1745597951778,0.063,151.94,151.92,32.3966208]
[1745597952073,0.063,151.94,151.92,15.72]
[1745597952574,0.063,151.94,151.88,1.6052]
[1745597952575,0.063,151.94,151.88,15.72]
[1745597952880,0.063,151.94,151.88,32.3966208]
[1745597953376,2.46046189,151.94,151.88,32.3966208]
[1745597953558,6.63802667,151.94,151.88,32.3966208]
[1745597954076,6.63802667,151.94,151.88,15.72]
[1745597954572,6.63802667,151.94,151.85,211.8038]
[1745597954573,6.57502667,151.93,151.85,227.5238]
[1745597954761,6.57502667,151.93,151.85,211.8038]
[1745597954946,26.0,151.92,151.85,221.2]
[1745597955361,2.39746189,151.91,151.85,221.2]
[1745597955656,6.57502667,151.91,151.85,221.2]
[1745597956065,2.39746189,151.9,151.85,221.2]
[1745597956675,4.17756478,151.89,151.85,221.2]
[1745597957057,2.39746189,151.88,151.85,15.72]
[1745597957780,4.17756478,151.87,151.85,15.72]
[1745597959177,4.17756478,151.9,151.85,15.72]
[1745597959564,4.17756478,151.9,151.82,15.72]
[1745597959775,2.39650244,151.89,151.82,15.72]
[1745597960179,4.17756478,151.88,151.82,15.72]
[1745597960871,2.39650244,151.87,151.82,32.3966208]
[1745597961252,2.39650244,151.87,151.83,16.6766208]
[1745597961447,2.39650244,151.87,151.82,15.72]
[1745597961448,2.39650244,151.87,151.85,16.6766208]
[1745597961648,0.063,151.94,151.85,16.6766208]
[1745597961870,26.0,151.93,151.85,16.6766208]
[1745597962083,26.0,151.93,151.86,16.6766208]
[1745597962385,0.063,151.94,151.89,16.6766208]
[1745597962386,2.39831911,151.92,151.89,16.6766208]
[1745597962588,2.39831911,151.92,151.9,15.72]
[1745597963258,0.063,151.94,151.9,15.72]
[1745597964584,4.1844634,151.93,151.9,15.72]
[1745597965589,2.39831911,151.92,151.9,15.72]
[1745597965795,6.58278251,151.92,151.9,15.72]
[1745597966868,6.58278251,151.91,151.9,15.72]
[1745597967955,4.1844634,151.91,151.9,15.72]
[1745597968673,4.1844634,151.93,151.9,15.72]
[1745597969667,0.063,151.94,151.9,15.72]
[1745597969668,4.1844634,151.92,151.9,15.72]
[1745597969865,6.59064601,151.92,151.9,15.72]
[1745597970275,4.1844634,151.92,151.9,15.72]
[1745597970583,4.1844634,151.91,151.9,15.72]
[1745597971370,4.1844634,151.91,151.9,32.3966208]
[1745597972083,4.1844634,151.93,151.9,32.3966208]
[1745597972289,4.1844634,151.93,151.92,16.6766208]
[1745597973463,0.063,151.94,151.92,16.6766208]
[1745597973886,0.063,151.94,151.93,16.6766208]
[1745597974396,0.063,151.94,151.89,16.6766208]
[1745597974596,0.063,151.94,151.92,15.7]
[1745597975984,4.2474634,151.94,151.92,15.7]
[1745597977197,4.1844634,151.93,151.92,15.7]
[1745597979298,4.1844634,151.93,151.87,207.0011]
[1745597979500,6.59247284,151.93,151.87,207.0011]
[1745597980191,2.40800944,151.92,151.87,207.0011]
[1745597980791,4.1844634,151.91,151.87,207.0011]
[1745597980979,4.1844634,151.91,151.87,223.6777208]
[1745597981290,4.1844634,151.91,151.88,16.6766208]
[1745597981595,4.1844634,151.91,151.87,223.6777208]
[1745597981782,0.063,151.94,151.87,223.6777208]
[1745597982296,0.063,151.94,151.87,207.0011]
[1745597982593,2.40663087,151.93,151.87,1.6211]
[1745597982793,6.60340206,151.93,151.87,1.6211]
[1745597983194,2.40663087,151.92,151.87,1.6211]
[1745597983400,2.40663087,151.92,151.86,15.7]
[1745597983901,4.19677119,151.91,151.86,32.3766208]
[1745597985178,26.063,151.94,151.86,32.3766208]
[1745597985378,26.063,151.94,151.86,15.7]
[1745597985580,2.40562201,151.93,151.86,15.7]
[1745597985776,2.40562201,151.93,151.86,32.3766208]
[1745597985999,2.40562201,151.93,151.89,16.6766208]
[1745597986181,2.40562201,151.93,151.88,16.6766208]
[1745597986379,2.40562201,151.93,151.87,16.6766208]
[1745597986690,4.19568413,151.92,151.86,32.3766208]
[1745597986890,4.19568413,151.92,151.86,15.7]
[1745597987114,4.19568413,151.92,151.86,32.3766208]
[1745597987618,4.19568413,151.91,151.86,15.7]
[1745597987916,6.60130614,151.91,151.86,15.7]
[1745597988213,1.598,151.9,151.82,205.36]
[1745597988424,1.598,151.9,151.83,15.7]
[1745597988789,2.40562201,151.89,151.83,15.7]
[1745597989014,4.19568413,151.88,151.83,15.7]
[1745597989210,4.19568413,151.88,151.83,32.3766208]
[1745597989581,2.40562201,151.87,151.83,15.7]
[1745597989993,4.19568413,151.86,151.83,15.7]
[1745597990195,4.19568413,151.86,151.83,32.3766208]
[1745597990911,4.19568413,151.86,151.83,15.7]
[1745597991617,4.19568413,151.86,151.83,32.3766208]
[1745597991821,4.19568413,151.92,151.84,16.6766208]
[1745597991983,30.19568413,151.92,151.84,16.6766208]
[1745597992182,30.19568413,151.92,151.83,32.3766208]
[1745597992688,2.40339015,151.91,151.85,16.6766208]
[1745597992909,2.40339015,151.91,151.87,16.6766208]
[1745597993113,4.19568413,151.9,151.87,16.6766208]
[1745597993290,4.19568413,151.9,151.83,100.0879]
[1745597993491,4.19568413,151.9,151.86,16.6766208]
[1745597993712,4.19568413,151.9,151.87,16.6766208]
[1745597993921,4.19568413,151.93,151.87,16.6766208]
[1745597994400,4.19568413,151.93,151.83,100.0879]
[1745597994715,2.40369906,151.92,151.84,16.6766208]
[1745597995097,6.59938319,151.92,151.86,16.6766208]
[1745597995593,2.40369906,151.91,151.86,16.6766208]
[1745597995802,2.40369906,151.91,151.83,100.0879]
[1745597995803,4.19568413,151.9,151.83,100.0879]
[1745597996018,4.19568413,151.9,151.86,16.6766208]
[1745597996391,4.19568413,151.9,151.87,16.6766208]
[1745597996590,4.19568413,151.93,151.87,16.6766208]
[1745597997201,2.40528615,151.92,151.87,16.6766208]
[1745597997602,4.19568413,151.91,151.87,16.6766208]
[1745597998928,4.19568413,151.91,151.88,16.6766208]
[1745597999098,4.19568413,151.91,151.89,15.7]
[1745597999499,4.19568413,151.91,151.86,15.7]
[1745597999818,4.19568413,151.9,151.86,15.7]
[1745598000393,4.19568413,151.9,151.82,205.36]
[1745598000597,4.19568413,151.9,151.83,15.7]
[1745598001014,4.19568413,151.89,151.83,15.7]
[1745598001199,2.40489428,151.88,151.83,15.7]
[1745598001399,2.40489428,151.88,151.84,16.6766208]
[1745598001603,2.40489428,151.88,151.85,16.6766208]
[1745598001827,2.40489428,151.88,151.84,16.6766208]
[1745598002119,2.40489428,151.88,151.83,22.1296]
[1745598002322,4.19568413,151.87,151.83,15.7]
[1745598002493,4.19568413,151.87,151.84,16.6766208]
[1745598002694,4.19568413,151.87,151.83,15.7]
[1745598002893,4.19568413,151.87,151.84,16.6766208]
[1745598003424,4.19568413,151.91,151.84,16.6766208]
[1745598003820,2.40748307,151.9,151.86,16.6766208]
[1745598004131,2.40748307,151.9,151.87,16.6766208]
[1745598004426,4.19568413,151.89,151.86,16.6766208]
[1745598004625,4.19568413,151.89,151.87,16.6766208]
[1745598004925,4.19568413,151.89,151.88,16.6766208]
[1745598005127,2.40748307,151.9,151.88,16.6766208]
[1745598005329,2.40748307,151.9,151.89,15.7]
[1745598006029,2.40748307,151.93,151.89,15.7]
[1745598006530,4.20173321,151.92,151.89,15.7]
[1745598007732,4.20173321,151.91,151.89,15.7]
[1745598008200,4.20173321,151.91,151.89,32.3766208]
[1745598008805,4.20173321,151.91,151.9,16.6766208]
[1745598009226,4.20173321,151.93,151.9,16.6766208]
[1745598009423,4.20173321,151.93,151.91,16.6766208]
[1745598009903,4.20173321,151.93,151.92,16.6766208]
[1745598010400,0.063,151.94,151.92,16.6766208]
[1745598010800,0.063,151.94,151.86,33.8584]
[1745598011016,0.063,151.94,151.9,32.3766208]
[1745598011215,0.063,151.94,151.91,16.6766208]
[1745598013133,0.063,151.94,151.9,15.7]
[1745598014133,2.40677614,151.93,151.9,15.7]
[1745598014823,2.40677614,151.93,151.92,16.6766208]
[1745598015020,0.063,151.94,151.92,16.6766208]
[1745598015223,0.063,151.94,151.93,16.6766208]
[1745598015433,0.063,151.94,151.9,15.7]
[1745598015434,0.063,151.94,151.92,16.6766208]
[1745598015935,0.063,151.94,151.93,16.6766208]
[1745598016225,0.063,151.94,151.9,15.7]
[1745598016831,0.063,151.94,151.9,32.3766208]
[1745598017013,0.063,151.94,151.91,16.6766208]
[1745598017535,0.063,151.94,151.93,16.6766208]
[1745598017842,0.063,151.94,151.9,15.7]
[1745598018005,0.063,151.94,151.91,16.6766208]
[1745598018348,0.063,151.94,151.92,16.6766208]
[1745598018549,0.063,151.94,151.9,15.7]
[1745598019050,0.063,151.94,151.92,16.6766208]
[1745598019707,0.063,151.94,151.85,19.79181043]
[1745598019708,2.8107,151.89,151.79,0.03]
[1745598019925,18.64964886,151.84,151.79,0.03]
[1745598020130,0.14216157,151.83,151.79,0.03]
[1745598020409,2.40677614,151.82,151.79,0.03]
[1745598021138,2.40677614,151.81,151.79,0.03]
[1745598021518,4.79860283,151.8,151.79,0.03]
[1745598022224,7.20537897,151.8,151.79,0.03]
[1745598026444,2.40677614,151.8,151.79,0.03]
[1745598027061,21.19858657,151.8,151.79,0.03]
[1745598027562,18.79181043,151.79,151.78,75.03494136]
[1745598028056,44.79181043,151.79,151.78,41.02246909]
[1745598028245,53.78663584,151.79,151.78,41.02246909]
[1745598028430,47.19858657,151.79,151.78,41.02246909]
[1745598028631,51.97781784,151.79,151.78,41.02246909]
[1745598029058,33.18600741,151.79,151.78,41.02246909]
[1745598029347,32.02630741,151.79,151.78,41.02246909]
[1745598030143,7.18600741,151.79,151.78,41.02246909]
[1745598033946,25.97781784,151.79,151.78,41.02246909]
[1745598034740,51.97781784,151.79,151.78,41.02246909]
[1745598038560,33.18600741,151.79,151.78,41.02246909]
[1745598039463,7.18600741,151.79,151.78,41.02246909]
[1745598039632,37.18600741,151.79,151.78,41.02246909]
[1745598040060,32.40677614,151.79,151.78,41.02246909]
[1745598040247,2.40677614,151.79,151.78,41.02246909]
[1745598042466,2.40677614,151.81,151.78,41.02246909]
[1745598043243,2.40677614,151.8,151.78,41.02246909]
[1745598043442,7.16693001,151.8,151.78,41.02246909]
[1745598043968,2.40677614,151.79,151.78,41.02246909]
[1745598044840,2.40677614,151.81,151.78,41.02246909]
[1745598045772,2.40677614,151.8,151.78,41.02246909]
[1745598046349,2.40677614,151.79,151.78,41.02246909]
[1745598046556,7.16862798,151.79,151.78,41.02246909]
[1745598047567,2.40677614,151.79,151.78,41.02246909]
[1745598047779,2.40677614,151.81,151.78,41.02246909]
[1745598048560,4.76248491,151.8,151.78,41.02246909]
[1745598048752,2.40677614,151.79,151.78,41.02246909]
[1745598049178,21.056425,151.79,151.78,41.02246909]
[1745598049772,25.81890991,151.79,151.78,41.02246909]
[1745598050145,25.96107148,151.79,151.78,41.02246909]
[1745598050346,7.16926105,151.79,151.78,41.02246909]
[1745598058983,7.16926105,151.79,151.78,63.87928989]
[1745598058984,2.40677614,151.79,151.78,63.87928989]
[1745598060081,2.40677614,151.79,151.78,41.02246909]
[1745598060655,7.19762637,151.79,151.78,41.02246909]
[1745598067297,2.40677614,151.79,151.78,41.02246909]
[1745598069078,28.40677614,151.79,151.78,41.02246909]
[1745598069599,47.19858657,151.79,151.78,41.02246909]
[1745598071101,53.78663584,151.79,151.78,41.02246909]
[1745598071605,47.19858657,151.79,151.78,41.02246909]
[1745598071979,53.78663584,151.79,151.78,41.02246909]
[1745598074817,47.19858657,151.79,151.78,41.02246909]
[1745598075117,53.78663584,151.79,151.78,41.02246909]
[1745598075601,47.19858657,151.79,151.78,41.02246909]
[1745598075814,53.78663584,151.79,151.78,41.02246909]
[1745598075983,47.19858657,151.79,151.78,41.02246909]
[1745598076178,27.78663584,151.79,151.78,41.02246909]
[1745598076399,21.19858657,151.79,151.78,41.02246909]
[1745598076917,27.78663584,151.79,151.78,41.02246909]
[1745598078792,21.19858657,151.79,151.78,41.02246909]
[1745598079013,21.056425,151.79,151.78,41.02246909]
[1745598079185,27.64447427,151.79,151.78,41.02246909]
[1745598079384,27.78663584,151.79,151.78,41.02246909]
[1745598081620,53.78663584,151.79,151.78,41.02246909]
[1745598081914,35.62311567,151.79,151.78,24.54707007]
[1745598082121,35.62311567,151.79,151.78,16.47539902]
[1745598082285,35.62311567,151.79,151.78,8.07167105]
[1745598082810,35.4809541,151.79,151.78,8.07167105]
[1745598082996,27.64447427,151.79,151.78,8.07167105]
[1745598083194,57.64447427,151.79,151.78,8.07167105]
[1745598083508,57.78663584,151.79,151.78,8.07167105]
[1745598086118,51.19858657,151.79,151.78,8.07167105]
[1745598086414,57.78663584,151.79,151.78,8.07167105]
[1745598092617,32.40677614,151.79,151.78,8.07167105]
[1745598092822,2.40677614,151.79,151.78,14.67847105]
[1745598093298,2.40677614,151.79,151.78,25.35784889]
[1745598093500,2.40677614,151.79,151.78,33.00092143]
[1745598093713,0.063,151.86,151.78,33.00092143]
[1745598094020,0.063,151.86,151.79,32.34005038]
[1745598094220,0.063,151.86,151.8,16.66005038]
[1745598094530,26.063,151.86,151.79,32.34005038]
[1745598094831,26.063,151.86,151.79,15.68]
[1745598095523,0.063,151.86,151.79,15.68]
[1745598095950,26.063,151.86,151.79,15.68]
[1745598096321,26.0,151.82,151.79,15.68]
[1745598098195,26.0,151.81,151.79,15.68]
[1745598098426,26.0,151.81,151.78,16.34087105]
[1745598098819,26.0,151.81,151.78,14.67847105]
[1745598099614,0.14216157,151.84,151.78,14.67847105]
[1745598099615,26.0,151.82,151.78,14.67847105]
[1745598099824,26.0,151.81,151.78,14.67847105]
[1745598100332,26.0,151.81,151.78,8.07167105]
[1745598100726,26.0,151.8,151.78,8.07167105]
[1745598109647,44.79181043,151.79,151.78,7.53197108]
[1745598110145,51.3798597,151.79,151.78,7.53197108]
[1745598110350,52.9638597,151.79,151.78,7.53197108]
[1745598110530,60.43837112,151.79,151.78,7.53197108]
[1745598111347,18.79181043,151.78,151.77,0.03]
[1745598111754,26.26632185,151.78,151.77,0.03]
[1745598112066,51.38159626,151.75,151.74,0.03]
[1745598112267,51.38159626,151.75,151.72,8.30073987]
[1745598114668,15.06955933,151.77,151.72,8.30073987]
[1745598114868,7.59504791,151.77,151.72,8.30073987]
[1745598115036,26.24469677,151.77,151.72,8.30073987]
[1745598115536,26.0,151.74,151.72,8.30073987]
[1745598115865,26.24469677,151.77,151.72,8.30073987]
[1745598116439,7.59504791,151.77,151.72,8.30073987]
[1745598116838,26.0,151.76,151.72,8.30073987]
[1745598118554,7.59504791,151.77,151.73,16.66005038]
[1745598118933,18.64964886,151.83,151.74,15.68]
[1745598119136,18.64964886,151.83,151.75,7.8321]
[1745598119347,26.0,151.8,151.75,7.8321]
[1745598120167,15.743,151.86,151.75,24.49215038]
[1745598120367,18.71264886,151.86,151.77,16.66005038]
[1745598120541,26.0,151.83,151.77,16.66005038]
[1745598120737,26.0,151.85,151.76,16.66005038]
[1745598120989,26.063,151.86,151.75,24.49215038]
[1745598120990,18.85481043,151.86,151.75,24.49215038]
[1745598121130,26.0,151.84,151.75,24.49215038]
[1745598121333,26.0,151.84,151.75,7.8321]
[1745598121558,26.0,151.84,151.75,24.49215038]
[1745598122038,26.0,151.83,151.75,24.49215038]
[1745598122240,26.0,151.83,151.76,16.66005038]
[1745598122442,0.063,151.86,151.75,14.42179909]
[1745598122647,0.063,151.86,151.75,90.6321]
[1745598122885,26.0,151.85,151.79,16.66005038]
[1745598123074,0.063,151.86,151.8,38.69885038]
[1745598123877,0.063,151.86,151.82,1.5515]
[1745598128878,0.063,151.86,151.82,18.21155038]
[1745598129078,0.063,151.86,151.83,16.66005038]
[1745598129254,0.063,151.86,151.84,16.66005038]
[1745598129762,0.063,151.86,151.83,16.66005038]
[1745598129970,0.063,151.86,151.84,16.66005038]
[1745598130996,0.063,151.86,151.85,16.66005038]
[1745598131549,0.063,151.94,151.85,24.82355038]
[1745598131550,26.063,151.94,151.85,24.82355038]
[1745598131885,26.063,151.94,151.87,16.66005038]
[1745598132486,26.063,151.94,151.9,16.66005038]
[1745598132487,0.063,151.93,151.9,16.66005038]
[1745598132981,0.063,151.93,151.92,6.2843]
[1745598133172,0.063,151.93,151.92,40.18555038]
[1745598135271,0.063,151.94,151.92,56.84560076]
[1745598135479,0.063,151.94,151.93,16.66005038]
[1745598135780,0.063,151.95,151.93,16.66005038]
[1745598135998,0.063,151.95,151.94,16.66005038]
[1745598136167,0.063,151.95,151.94,99.46005038]
[1745598136683,0.063,151.95,151.94,118.10969924]
[1745598137268,0.063,151.95,151.94,99.46005038]
[1745598137474,0.063,151.95,151.94,16.66005038]
[1745598140069,0.063,151.95,151.94,126.0068388]
[1745598140906,0.063,152.0,151.95,0.14216157]
[1745598141112,0.063,152.0,151.95,23.38332415]
[1745598142387,0.063,152.0,151.97,6.594]